[Event "*** Titled Tuesday Blitz"]
[Site "Chess.com"]
[Date "2018.07.03"]
[Round "2"]
[White "Paralinch"]
[Black "rasmussvane"]
[Result "1-0"]
[WhiteElo "2789"]
[BlackElo "2553"]
[TimeControl "180+2"]
[EndTime "13:21:59 PDT"]
[Termination "Paralinch won by resignation"]

1. e4 {[%clk 0:03:01.9]} 1... c6 {[%clk 0:03:00.8]} 2. d4 {[%clk 0:03:02.3]}
2... d5 {[%clk 0:03:02.4]} 3. Nd2 {[%clk 0:03:03.5]} 3... dxe4 {[%clk
0:03:02.8]} 4. Nxe4 {[%clk 0:03:05.4]} 4... Bf5 {[%clk 0:03:03.6]} 5. Ng3 {[%clk
0:03:06.3]} 5... Bg6 {[%clk 0:03:05]} 6. h4 {[%clk 0:03:07.9]} 6... h6 {[%clk
0:03:06.5]} 7. Nf3 {[%clk 0:03:09.4]} 7... e6 {[%clk 0:03:08]} 8. h5 {[%clk
0:03:10.1]} 8... Bh7 {[%clk 0:03:09.2]} 9. Bd3 {[%clk 0:03:11.7]} 9... Bxd3
{[%clk 0:03:10.5]} 10. Qxd3 {[%clk 0:03:13.6]} 10... Nf6 {[%clk 0:03:12]} 11.
Bd2 {[%clk 0:03:14.7]} 11... Be7 {[%clk 0:03:13.5]} 12. O-O-O {[%clk 0:03:14.7]}
12... c5 {[%clk 0:03:14.9]} 13. Ne4 {[%clk 0:03:14.9]} 13... Nc6 {[%clk
0:03:15.2]} 14. Bc3 {[%clk 0:03:15.5]} 14... cxd4 {[%clk 0:02:17.9]} 15. Nxd4
{[%clk 0:03:16.4]} 15... Nxd4 {[%clk 0:02:08.6]} 16. Bxd4 {[%clk 0:03:17.3]}
16... O-O {[%clk 0:02:07.4]} 17. Bxf6 {[%clk 0:02:56.1]} 17... Qxd3 {[%clk
0:01:53.1]} 18. Rxd3 {[%clk 0:02:56.4]} 18... Bxf6 {[%clk 0:01:51.6]} 19. Nxf6+
{[%clk 0:02:55.1]} 19... gxf6 {[%clk 0:01:53.5]} 20. Rd7 {[%clk 0:02:56.4]}
20... Rab8 {[%clk 0:01:52.5]} 21. Rhd1 {[%clk 0:02:55.7]} 21... f5 {[%clk
0:01:49.6]} 22. Rc7 {[%clk 0:02:56.2]} 22... Rfc8 {[%clk 0:01:49]} 23. Rxc8+
{[%clk 0:02:49.3]} 23... Rxc8 {[%clk 0:01:50.3]} 24. Rd7 {[%clk 0:02:50.8]}
24... Rb8 {[%clk 0:01:51.7]} 25. c4 {[%clk 0:02:51.6]} 25... Kg7 {[%clk
0:01:52.7]} 26. Kd2 {[%clk 0:02:38.6]} 26... Kf6 {[%clk 0:01:53.1]} 27. b4
{[%clk 0:02:39.2]} 27... e5 {[%clk 0:01:43.8]} 28. c5 {[%clk 0:02:37.1]} 28...
a5 {[%clk 0:01:33.2]} 29. a3 {[%clk 0:02:32.6]} 29... axb4 {[%clk 0:01:33.1]}
30. axb4 {[%clk 0:02:34.5]} 30... f4 {[%clk 0:01:21.2]} 31. Kd3 {[%clk
0:02:23.3]} 31... b5 {[%clk 0:01:05.4]} 32. Ke4 {[%clk 0:02:13]} 32... Ra8
{[%clk 0:00:56.9]} 33. Rd6+ {[%clk 0:02:08.5]} 33... Kg5 {[%clk 0:00:57.6]} 34.
Kxe5 {[%clk 0:02:05.8]} 34... Ra2 {[%clk 0:00:58.6]} 35. f3 {[%clk 0:02:01.9]}
35... Rxg2 {[%clk 0:00:46.8]} 36. Rd5 {[%clk 0:01:59.6]} 36... Rc2 {[%clk
0:00:39.7]} 37. Kd6+ {[%clk 0:01:58.7]} 37... Kh4 {[%clk 0:00:41.1]} 38. c6
{[%clk 0:01:59.8]} 38... Kg3 {[%clk 0:00:39.7]} 39. c7 {[%clk 0:02:00.4]} 39...
Rxc7 {[%clk 0:00:38]} 40. Kxc7 {[%clk 0:02:01.4]} 40... Kxf3 {[%clk 0:00:39.9]}
41. Rf5 {[%clk 0:01:59.8]} 1-0

[Event "*** Titled Tuesday Blitz"]
[Site "Chess.com"]
[Date "2018.07.03"]
[Round "2"]
[White "nickmatta"]
[Black "pedromartinez91"]
[Result "0-1"]
[WhiteElo "2269"]
[BlackElo "2417"]
[TimeControl "180+2"]
[EndTime "13:22:02 PDT"]
[Termination "pedromartinez91 won by resignation"]

1. d4 {[%clk 0:03:01.9]} 1... d5 {[%clk 0:03:00.3]} 2. c4 {[%clk 0:03:02.7]}
2... c6 {[%clk 0:02:59.7]} 3. Nf3 {[%clk 0:03:02.2]} 3... Nf6 {[%clk 0:02:59.1]}
4. Qc2 {[%clk 0:03:03.4]} 4... g6 {[%clk 0:02:59.1]} 5. Bf4 {[%clk 0:03:03.7]}
5... Bg7 {[%clk 0:02:58]} 6. e3 {[%clk 0:03:03.7]} 6... Bf5 {[%clk 0:02:54.9]}
7. Qb3 {[%clk 0:03:04.1]} 7... Qb6 {[%clk 0:02:55.7]} 8. Nc3 {[%clk 0:03:04]}
8... O-O {[%clk 0:02:56]} 9. Be2 {[%clk 0:02:47.5]} 9... Nbd7 {[%clk 0:02:55.6]}
10. h3 {[%clk 0:02:43.1]} 10... Ne4 {[%clk 0:02:46.9]} 11. g4 {[%clk 0:02:11]}
11... Be6 {[%clk 0:02:39.7]} 12. Nxe4 {[%clk 0:01:40.6]} 12... dxe4 {[%clk
0:02:41.6]} 13. Ng5 {[%clk 0:01:40.6]} 13... Qa5+ {[%clk 0:02:41.4]} 14. Kf1
{[%clk 0:01:40.4]} 14... Nb6 {[%clk 0:02:19.3]} 15. Nxe6 {[%clk 0:01:03.8]}
15... fxe6 {[%clk 0:02:20.3]} 16. Bc7 {[%clk 0:00:59]} 16... Qd2 {[%clk
0:01:57.2]} 17. Bxb6 {[%clk 0:00:53.1]} 17... Rxf2+ {[%clk 0:01:50.1]} 18. Kxf2
{[%clk 0:00:54.3]} 18... Rf8+ {[%clk 0:01:51.4]} 19. Kg1 {[%clk 0:00:38.5]}
19... axb6 {[%clk 0:01:29.8]} 20. Rf1 {[%clk 0:00:26.8]} 20... Qxe2 {[%clk
0:01:20.9]} 21. Rxf8+ {[%clk 0:00:24.1]} 21... Bxf8 {[%clk 0:01:22.1]} 22. Rh2
{[%clk 0:00:07.3]} 22... Qe1+ {[%clk 0:01:19.6]} 23. Kg2 {[%clk 0:00:08.8]}
23... Bh6 {[%clk 0:01:18.2]} 24. Qc3 {[%clk 0:00:05]} 24... Qd1 {[%clk
0:01:11.3]} 25. h4 {[%clk 0:00:02.5]} 25... Qf3+ {[%clk 0:01:12.1]} 26. Kg1
{[%clk 0:00:02.9]} 26... Bxe3+ {[%clk 0:01:13.2]} 27. Qxe3 {[%clk 0:00:03]}
27... Qxe3+ {[%clk 0:01:14.2]} 0-1

[Event "*** Titled Tuesday Blitz"]
[Site "Chess.com"]
[Date "2018.07.03"]
[Round "2"]
[White "GameOverBro"]
[Black "Caterpiller35"]
[Result "1-0"]
[WhiteElo "2429"]
[BlackElo "2278"]
[TimeControl "180+2"]
[EndTime "13:22:13 PDT"]
[Termination "GameOverBro won by resignation"]

1. e4 {[%clk 0:03:01.9]} 1... c5 {[%clk 0:03:00.1]} 2. Ne2 {[%clk 0:03:01.9]}
2... g6 {[%clk 0:02:58.9]} 3. g3 {[%clk 0:03:01.1]} 3... Bg7 {[%clk 0:02:59.1]}
4. d4 {[%clk 0:03:01.7]} 4... cxd4 {[%clk 0:02:59]} 5. Nxd4 {[%clk 0:03:03.6]}
5... Nc6 {[%clk 0:02:59.5]} 6. Ne2 {[%clk 0:03:04.1]} 6... h5 {[%clk 0:02:58.2]}
7. h3 {[%clk 0:03:04.5]} 7... d6 {[%clk 0:02:59]} 8. Nbc3 {[%clk 0:03:04.4]}
8... Rb8 {[%clk 0:02:52.9]} 9. a4 {[%clk 0:03:04.3]} 9... Nf6 {[%clk 0:02:52.7]}
10. Bg2 {[%clk 0:03:05.1]} 10... O-O {[%clk 0:02:53.5]} 11. Be3 {[%clk
0:03:02.6]} 11... a6 {[%clk 0:02:53.5]} 12. O-O {[%clk 0:03:01.4]} 12... b5
{[%clk 0:02:54.5]} 13. axb5 {[%clk 0:03:01.3]} 13... axb5 {[%clk 0:02:56.4]} 14.
Nd5 {[%clk 0:03:01.2]} 14... Nxd5 {[%clk 0:02:52.1]} 15. exd5 {[%clk 0:03:03.1]}
15... Ne5 {[%clk 0:02:51]} 16. Bd4 {[%clk 0:03:02]} 16... e6 {[%clk 0:02:40.7]}
17. Kh2 {[%clk 0:02:49.6]} 17... exd5 {[%clk 0:02:37.5]} 18. f4 {[%clk
0:02:49.5]} 18... Nc4 {[%clk 0:02:30.9]} 19. Bxg7 {[%clk 0:02:46.9]} 19... Kxg7
{[%clk 0:02:32.8]} 20. b3 {[%clk 0:02:48.2]} 20... Nb6 {[%clk 0:02:19.2]} 21.
Nd4 {[%clk 0:02:49.1]} 21... Bd7 {[%clk 0:02:10.2]} 22. f5 {[%clk 0:02:49.8]}
22... Qg5 {[%clk 0:02:05.2]} 23. f6+ {[%clk 0:02:38.2]} 23... Kh8 {[%clk
0:02:03.1]} 24. h4 {[%clk 0:02:31.4]} 24... Qe5 {[%clk 0:01:50]} 25. Qd2 {[%clk
0:02:25.3]} 25... Kh7 {[%clk 0:01:48.2]} 26. Nf3 {[%clk 0:02:24.2]} 26... Qe8
{[%clk 0:01:41.3]} 27. Ng5+ {[%clk 0:02:24.7]} 27... Kg8 {[%clk 0:01:42.1]} 28.
Rae1 {[%clk 0:02:20.8]} 28... Qc8 {[%clk 0:01:41.3]} 29. Re7 {[%clk 0:02:17]}
29... Bg4 {[%clk 0:01:36]} 30. Ne6 {[%clk 0:02:03.9]} 30... Kh7 {[%clk
0:01:03.8]} 31. Ng5+ {[%clk 0:02:03.5]} 31... Kg8 {[%clk 0:01:04.2]} 32. Nxf7
{[%clk 0:01:43.8]} 32... Rxf7 {[%clk 0:00:59]} 33. Qh6 {[%clk 0:01:32.9]} 33...
Rxe7 {[%clk 0:00:38.5]} 34. Qxg6+ {[%clk 0:01:32.6]} 34... Kh8 {[%clk
0:00:38.6]} 35. fxe7 {[%clk 0:01:32.5]} 1-0

[Event "*** Titled Tuesday Blitz"]
[Site "Chess.com"]
[Date "2018.07.03"]
[Round "2"]
[White "Arman_Hakemi"]
[Black "sergeikim"]
[Result "1-0"]
[WhiteElo "2295"]
[BlackElo "2412"]
[TimeControl "180+2"]
[EndTime "13:22:22 PDT"]
[Termination "Arman_Hakemi won by resignation"]

1. Nf3 {[%clk 0:03:01.9]} 1... Nf6 {[%clk 0:02:59.9]} 2. g3 {[%clk 0:03:01]}
2... g6 {[%clk 0:03:00.9]} 3. Bg2 {[%clk 0:03:00.4]} 3... Bg7 {[%clk 0:03:02]}
4. O-O {[%clk 0:03:01.8]} 4... O-O {[%clk 0:03:02.9]} 5. d3 {[%clk 0:03:02.7]}
5... d6 {[%clk 0:03:02.6]} 6. c4 {[%clk 0:03:03.8]} 6... e5 {[%clk 0:03:02.4]}
7. Nc3 {[%clk 0:03:04.9]} 7... Nbd7 {[%clk 0:02:59.9]} 8. Rb1 {[%clk 0:03:05.5]}
8... Nh5 {[%clk 0:02:59.8]} 9. b4 {[%clk 0:03:06.3]} 9... f5 {[%clk 0:03:00.6]}
10. Bd2 {[%clk 0:03:06.6]} 10... f4 {[%clk 0:03:01.2]} 11. Ne1 {[%clk
0:03:07.4]} 11... g5 {[%clk 0:02:59]} 12. e3 {[%clk 0:02:54]} 12... Ndf6 {[%clk
0:02:58.7]} 13. Nc2 {[%clk 0:02:53.9]} 13... g4 {[%clk 0:02:56.6]} 14. Re1
{[%clk 0:02:10.2]} 14... Kh8 {[%clk 0:02:20.2]} 15. d4 {[%clk 0:02:05.5]} 15...
f3 {[%clk 0:02:15.6]} 16. Bf1 {[%clk 0:02:05.3]} 16... e4 {[%clk 0:02:15.7]} 17.
d5 {[%clk 0:01:58.4]} 17... Bf5 {[%clk 0:02:14.2]} 18. Nd4 {[%clk 0:01:58.4]}
18... Qd7 {[%clk 0:02:15.1]} 19. c5 {[%clk 0:01:57.8]} 19... dxc5 {[%clk
0:02:05.8]} 20. bxc5 {[%clk 0:01:58]} 20... Nxd5 {[%clk 0:02:06.8]} 21. Rxb7
{[%clk 0:01:55.6]} 21... Bxd4 {[%clk 0:01:48.6]} 22. exd4 {[%clk 0:01:52.1]}
22... Nhf6 {[%clk 0:01:45.7]} 23. Qb3 {[%clk 0:01:48.7]} 23... Be6 {[%clk
0:01:39]} 24. Bc4 {[%clk 0:01:46.3]} 24... Rae8 {[%clk 0:01:34.5]} 25. Nxe4
{[%clk 0:01:43.4]} 25... Nxe4 {[%clk 0:01:32.4]} 26. Rxe4 {[%clk 0:01:44.4]}
26... Bg8 {[%clk 0:01:33.9]} 27. Re5 {[%clk 0:01:33.2]} 27... Rxe5 {[%clk
0:01:22.6]} 28. dxe5 {[%clk 0:01:34.1]} 28... Nb6 {[%clk 0:01:23.6]} 29. Bc3
{[%clk 0:01:13.1]} 29... Bxc4 {[%clk 0:00:53.7]} 30. e6+ {[%clk 0:01:13.6]}
30... Kg8 {[%clk 0:00:55.1]} 31. exd7 {[%clk 0:01:09.5]} 31... Bxb3 {[%clk
0:00:56.2]} 32. cxb6 {[%clk 0:00:57.6]} 32... Be6 {[%clk 0:00:49.8]} 33. bxa7
{[%clk 0:00:55.1]} 33... Ra8 {[%clk 0:00:47.6]} 34. Rb8+ {[%clk 0:00:55.8]} 1-0

[Event "*** Titled Tuesday Blitz"]
[Site "Chess.com"]
[Date "2018.07.03"]
[Round "2"]
[White "Mikhail_Golubev"]
[Black "Opening_Prep"]
[Result "1-0"]
[WhiteElo "2404"]
[BlackElo "2423"]
[TimeControl "180+2"]
[EndTime "13:22:24 PDT"]
[Termination "Mikhail_Golubev won by resignation"]

1. e4 {[%clk 0:03:01.9]} 1... e5 {[%clk 0:02:56.9]} 2. Nf3 {[%clk 0:03:02.1]}
2... Nc6 {[%clk 0:02:57.7]} 3. Bb5 {[%clk 0:03:02.4]} 3... Nf6 {[%clk
0:02:56.8]} 4. O-O {[%clk 0:03:01.7]} 4... Nxe4 {[%clk 0:02:57.3]} 5. Re1 {[%clk
0:02:58]} 5... Nd6 {[%clk 0:02:58.1]} 6. Nxe5 {[%clk 0:02:58.8]} 6... Be7 {[%clk
0:02:59.3]} 7. Nxc6 {[%clk 0:02:46.4]} 7... dxc6 {[%clk 0:03:00.1]} 8. Be2
{[%clk 0:02:37.2]} 8... Nf5 {[%clk 0:02:40.3]} 9. c3 {[%clk 0:02:32.6]} 9... c5
{[%clk 0:02:36.9]} 10. d3 {[%clk 0:02:28.5]} 10... O-O {[%clk 0:02:35.2]} 11.
Bf4 {[%clk 0:02:29.1]} 11... Be6 {[%clk 0:02:18.4]} 12. Na3 {[%clk 0:02:25.7]}
12... c6 {[%clk 0:02:17.4]} 13. Qd2 {[%clk 0:02:22.3]} 13... Qd7 {[%clk
0:01:38.2]} 14. Nc4 {[%clk 0:02:12.1]} 14... Rfd8 {[%clk 0:01:34.2]} 15. Ne5
{[%clk 0:02:11.1]} 15... Qc8 {[%clk 0:01:32.9]} 16. g4 {[%clk 0:02:04.1]} 16...
Nh4 {[%clk 0:01:27]} 17. Bg5 {[%clk 0:02:04.1]} 17... Bxg5 {[%clk 0:01:15.3]}
18. Qxg5 {[%clk 0:02:04.3]} 18... Ng6 {[%clk 0:01:16.6]} 19. Nxg6 {[%clk
0:02:02.5]} 19... hxg6 {[%clk 0:01:18.5]} 20. h4 {[%clk 0:01:57.6]} 20... Rd5
{[%clk 0:01:16.7]} 21. Qf4 {[%clk 0:01:54.7]} 21... Qb8 {[%clk 0:01:15.8]} 22.
Qxb8+ {[%clk 0:01:51.9]} 22... Rxb8 {[%clk 0:01:17.7]} 23. f3 {[%clk 0:01:47.6]}
23... Kf8 {[%clk 0:01:15.4]} 24. Kf2 {[%clk 0:01:48.4]} 24... a5 {[%clk
0:01:11.9]} 25. Bf1 {[%clk 0:01:46.1]} 25... Rd7 {[%clk 0:01:03.3]} 26. Re5
{[%clk 0:01:45.7]} 26... b6 {[%clk 0:01:00.3]} 27. a3 {[%clk 0:01:45.7]} 27...
Ra8 {[%clk 0:00:42]} 28. Rae1 {[%clk 0:01:43.2]} 28... Rd5 {[%clk 0:00:37.1]}
29. Kg3 {[%clk 0:01:41]} 29... Rxe5 {[%clk 0:00:36.3]} 30. Rxe5 {[%clk
0:01:41.6]} 30... Ke7 {[%clk 0:00:37.9]} 31. f4 {[%clk 0:01:42]} 31... Kd6
{[%clk 0:00:39.1]} 32. Re1 {[%clk 0:01:34.4]} 32... b5 {[%clk 0:00:36]} 33. Bg2
{[%clk 0:01:27.6]} 33... b4 {[%clk 0:00:32.2]} 34. cxb4 {[%clk 0:01:20.4]} 34...
axb4 {[%clk 0:00:31]} 35. axb4 {[%clk 0:01:21]} 35... cxb4 {[%clk 0:00:31.4]}
36. Re4 {[%clk 0:01:21]} 36... c5 {[%clk 0:00:30.4]} 37. Rxe6+ {[%clk
0:01:19.8]} 1-0

[Event "*** Titled Tuesday Blitz"]
[Site "Chess.com"]
[Date "2018.07.03"]
[Round "2"]
[White "josiwales"]
[Black "champ2005"]
[Result "0-1"]
[WhiteElo "2500"]
[BlackElo "2710"]
[TimeControl "180+2"]
[EndTime "13:22:27 PDT"]
[Termination "champ2005 won by resignation"]

1. e4 {[%clk 0:03:01.9]} 1... c6 {[%clk 0:03:00.4]} 2. d4 {[%clk 0:03:01.6]}
2... d5 {[%clk 0:02:59.5]} 3. Nc3 {[%clk 0:03:02.8]} 3... dxe4 {[%clk
0:03:00.4]} 4. Nxe4 {[%clk 0:03:04.7]} 4... Bf5 {[%clk 0:03:01.8]} 5. Ng3 {[%clk
0:03:06.1]} 5... Bg6 {[%clk 0:03:02.7]} 6. h4 {[%clk 0:03:07.6]} 6... h6 {[%clk
0:03:01.4]} 7. Nf3 {[%clk 0:03:08.7]} 7... Nd7 {[%clk 0:03:02.2]} 8. h5 {[%clk
0:03:09.4]} 8... Bh7 {[%clk 0:03:03.4]} 9. Bd3 {[%clk 0:03:11]} 9... Bxd3 {[%clk
0:03:03.8]} 10. Qxd3 {[%clk 0:03:12.9]} 10... e6 {[%clk 0:03:05.3]} 11. Bf4
{[%clk 0:03:14.4]} 11... Qa5+ {[%clk 0:03:05.6]} 12. Bd2 {[%clk 0:03:15.8]}
12... Bb4 {[%clk 0:03:06.5]} 13. Ne4 {[%clk 0:03:17.4]} 13... Ngf6 {[%clk
0:03:06.3]} 14. Nd6+ {[%clk 0:03:18.2]} 14... Ke7 {[%clk 0:03:07.7]} 15. Nxb7
{[%clk 0:03:19.3]} 15... Qb6 {[%clk 0:03:08.9]} 16. Qb3 {[%clk 0:03:13.2]} 16...
Bxd2+ {[%clk 0:02:57.9]} 17. Nxd2 {[%clk 0:03:13.7]} 17... Rab8 {[%clk
0:02:55.7]} 18. Qa3+ {[%clk 0:03:06.9]} 18... c5 {[%clk 0:02:56.7]} 19. dxc5
{[%clk 0:02:38]} 19... Qxb7 {[%clk 0:02:53.4]} 20. c6+ {[%clk 0:02:37.9]} 20...
Qb4 {[%clk 0:02:54.4]} 21. Qxb4+ {[%clk 0:02:24.5]} 21... Rxb4 {[%clk
0:02:56.3]} 22. cxd7 {[%clk 0:02:25.8]} 22... Rxb2 {[%clk 0:02:56.9]} 23. O-O-O
{[%clk 0:02:21.5]} 23... Rxa2 {[%clk 0:02:53.1]} 24. Nb3 {[%clk 0:02:22]} 24...
Rd8 {[%clk 0:02:35.3]} 25. Rh4 {[%clk 0:02:06.7]} 25... Ra6 {[%clk 0:02:22.6]}
26. Rhd4 {[%clk 0:02:02.8]} 26... Rc6 {[%clk 0:02:23.2]} 27. Na5 {[%clk
0:01:58.5]} 27... Rc7 {[%clk 0:02:24.1]} 28. Rd6 {[%clk 0:01:50.2]} 28... Rdxd7
{[%clk 0:02:16.6]} 29. Nc6+ {[%clk 0:01:45.2]} 29... Ke8 {[%clk 0:02:17.1]} 30.
Rxd7 {[%clk 0:01:41.1]} 30... Rxd7 {[%clk 0:02:17.2]} 31. Rxd7 {[%clk
0:01:40.7]} 31... Kxd7 {[%clk 0:02:18]} 32. Nxa7 {[%clk 0:01:41.6]} 32... Nxh5
{[%clk 0:02:19]} 33. Nb5 {[%clk 0:01:42.3]} 33... Nf4 {[%clk 0:02:16.9]} 34. g3
{[%clk 0:01:43.1]} 34... Ng6 {[%clk 0:02:18]} 35. Kd2 {[%clk 0:01:42.2]} 35...
Ne5 {[%clk 0:02:19.1]} 36. Ke3 {[%clk 0:01:39.1]} 36... Kc6 {[%clk 0:02:19.6]}
37. Nc3 {[%clk 0:01:34]} 37... Ng4+ {[%clk 0:02:17.2]} 38. Kf3 {[%clk
0:01:34.2]} 38... Nf6 {[%clk 0:02:18.4]} 39. Nd1 {[%clk 0:01:26.2]} 39... Kc5
{[%clk 0:02:14.3]} 40. Ne3 {[%clk 0:01:27.1]} 40... Kd4 {[%clk 0:02:15]} 41. Kf4
{[%clk 0:01:23.4]} 41... Nd5+ {[%clk 0:01:56.8]} 42. Nxd5 {[%clk 0:00:57.1]}
42... exd5 {[%clk 0:01:55.5]} 43. Kf5 {[%clk 0:00:58.4]} 43... Kc3 {[%clk
0:01:53.6]} 44. Ke5 {[%clk 0:00:59.2]} 44... Kxc2 {[%clk 0:01:53.4]} 45. Kxd5
{[%clk 0:00:59.6]} 45... Kd3 {[%clk 0:01:54.5]} 46. g4 {[%clk 0:00:38.6]} 46...
Ke2 {[%clk 0:01:54.3]} 0-1

[Event "*** Titled Tuesday Blitz"]
[Site "Chess.com"]
[Date "2018.07.03"]
[Round "2"]
[White "VovenRogel"]
[Black "1e41-0"]
[Result "1-0"]
[WhiteElo "2701"]
[BlackElo "2497"]
[TimeControl "180+2"]
[EndTime "13:22:44 PDT"]
[Termination "VovenRogel won by resignation"]

1. c4 {[%clk 0:03:01.9]} 1... e5 {[%clk 0:02:58.4]} 2. Nc3 {[%clk 0:03:01.7]}
2... Bb4 {[%clk 0:02:58.7]} 3. Nd5 {[%clk 0:02:59.6]} 3... Bc5 {[%clk
0:02:59.3]} 4. Nf3 {[%clk 0:02:50.8]} 4... e4 {[%clk 0:02:56.6]} 5. d4 {[%clk
0:02:49.7]} 5... exf3 {[%clk 0:02:54]} 6. dxc5 {[%clk 0:02:50.3]} 6... fxg2
{[%clk 0:02:54.6]} 7. Bxg2 {[%clk 0:02:51.7]} 7... Ne7 {[%clk 0:02:42.5]} 8. Rg1
{[%clk 0:02:31]} 8... Ng6 {[%clk 0:02:14.7]} 9. h4 {[%clk 0:02:15]} 9... c6
{[%clk 0:01:55.5]} 10. h5 {[%clk 0:02:14.4]} 10... cxd5 {[%clk 0:01:40.3]} 11.
hxg6 {[%clk 0:02:14.3]} 11... hxg6 {[%clk 0:01:40.9]} 12. Qxd5 {[%clk
0:02:11.3]} 12... Rh5 {[%clk 0:01:37.3]} 13. Qd3 {[%clk 0:02:00.7]} 13... Nc6
{[%clk 0:01:37.3]} 14. Bd2 {[%clk 0:01:51.2]} 14... Rxc5 {[%clk 0:01:26.5]} 15.
Bc3 {[%clk 0:01:47.4]} 15... d6 {[%clk 0:01:24.1]} 16. O-O-O {[%clk 0:01:45.1]}
16... Be6 {[%clk 0:01:21.7]} 17. Bd5 {[%clk 0:01:37.1]} 17... Bxd5 {[%clk
0:01:14.3]} 18. cxd5 {[%clk 0:01:38]} 18... Ne7 {[%clk 0:01:15.9]} 19. Kb1
{[%clk 0:01:34.4]} 19... Qd7 {[%clk 0:01:13.1]} 20. e4 {[%clk 0:01:33]} 20... f6
{[%clk 0:01:09.8]} 21. Bd4 {[%clk 0:01:31.5]} 21... Rc7 {[%clk 0:01:09]} 22. Rh1
{[%clk 0:01:22.2]} 22... Kf7 {[%clk 0:01:07.9]} 23. Rh7 {[%clk 0:01:20.9]} 23...
Rac8 {[%clk 0:01:02.1]} 24. Bxf6 {[%clk 0:01:21.2]} 24... Kxf6 {[%clk
0:00:53.8]} 25. Qd4+ {[%clk 0:01:21.3]} 25... Kg5 {[%clk 0:00:47.4]} 26. Rg1+
{[%clk 0:01:21.5]} 26... Qg4 {[%clk 0:00:48.5]} 27. f4+ {[%clk 0:01:18.4]} 27...
Kxf4 {[%clk 0:00:47.3]} 28. e5+ {[%clk 0:01:19.7]} 28... Kf5 {[%clk 0:00:46.2]}
29. Qxg4+ {[%clk 0:01:19.5]} 29... Kxe5 {[%clk 0:00:48.1]} 30. Qe6+ {[%clk
0:01:20]} 30... Kd4 {[%clk 0:00:49.1]} 31. Rh4+ {[%clk 0:01:21.4]} 31... Kc5
{[%clk 0:00:50]} 32. Qe3+ {[%clk 0:01:18.2]} 32... Kxd5 {[%clk 0:00:47]} 33.
Rd1+ {[%clk 0:01:16.7]} 33... Kc6 {[%clk 0:00:47.8]} 34. Rc4+ {[%clk 0:01:09.5]}
34... Kd7 {[%clk 0:00:48.7]} 35. Rxc7+ {[%clk 0:01:10.4]} 35... Rxc7 {[%clk
0:00:50.5]} 36. Qxa7 {[%clk 0:01:07.9]} 36... Nf5 {[%clk 0:00:49.2]} 37. Qb6
{[%clk 0:01:05.8]} 37... Kc8 {[%clk 0:00:46.9]} 38. a4 {[%clk 0:01:03.6]} 38...
Rc6 {[%clk 0:00:47.7]} 39. Qb3 {[%clk 0:01:03.8]} 39... Kc7 {[%clk 0:00:48.8]}
40. Qf7+ {[%clk 0:01:04.3]} 40... Kb6 {[%clk 0:00:49.4]} 41. Qxg6 {[%clk
0:01:05.4]} 41... Ne3 {[%clk 0:00:48.7]} 42. Qg1 {[%clk 0:01:06.3]} 1-0

[Event "*** Titled Tuesday Blitz"]
[Site "Chess.com"]
[Date "2018.07.03"]
[Round "2"]
[White "Joel1285"]
[Black "gemarin"]
[Result "0-1"]
[WhiteElo "1735"]
[BlackElo "1822"]
[TimeControl "180+2"]
[EndTime "13:22:45 PDT"]
[Termination "gemarin won on time"]

1. d4 {[%clk 0:03:01.9]} 1... d5 {[%clk 0:02:20.4]} 2. c4 {[%clk 0:03:02.3]}
2... c6 {[%clk 0:02:21.4]} 3. Nf3 {[%clk 0:03:02.9]} 3... Nf6 {[%clk 0:02:22.6]}
4. Nc3 {[%clk 0:03:04.1]} 4... e6 {[%clk 0:02:20.8]} 5. Bg5 {[%clk 0:03:04.2]}
5... h6 {[%clk 0:02:15.8]} 6. Bxf6 {[%clk 0:03:03.6]} 6... Qxf6 {[%clk
0:02:15.4]} 7. e3 {[%clk 0:03:05.4]} 7... Qd8 {[%clk 0:02:14.4]} 8. Qc2 {[%clk
0:03:03.2]} 8... Nd7 {[%clk 0:02:12.3]} 9. O-O-O {[%clk 0:03:03.7]} 9... Nf6
{[%clk 0:02:08.4]} 10. e4 {[%clk 0:02:59.1]} 10... dxe4 {[%clk 0:02:04.7]} 11.
Nxe4 {[%clk 0:03:00.9]} 11... Be7 {[%clk 0:02:03.4]} 12. h4 {[%clk 0:02:53.5]}
12... Qa5 {[%clk 0:02:02]} 13. Kb1 {[%clk 0:02:48.4]} 13... Bd7 {[%clk
0:02:00.4]} 14. Ne5 {[%clk 0:02:40.1]} 14... Rd8 {[%clk 0:01:32.3]} 15. f3
{[%clk 0:01:34]} 15... c5 {[%clk 0:01:29.6]} 16. Nxc5 {[%clk 0:00:33]} 16...
Bxc5 {[%clk 0:01:26.6]} 17. dxc5 {[%clk 0:00:34.8]} 17... Qxc5 {[%clk
0:01:26.3]} 18. Nxd7 {[%clk 0:00:32.5]} 18... Nxd7 {[%clk 0:01:24.1]} 19. Bd3
{[%clk 0:00:23.9]} 19... Ne5 {[%clk 0:01:21.4]} 20. Rhe1 {[%clk 0:00:19.2]}
20... Ke7 {[%clk 0:01:12.9]} 21. Bf1 {[%clk 0:00:18.7]} 21... Rxd1+ {[%clk
0:01:03.6]} 22. Rxd1 {[%clk 0:00:20.5]} 22... Rc8 {[%clk 0:01:03.7]} 23. b3
{[%clk 0:00:20.7]} 23... b5 {[%clk 0:01:01.8]} 24. Qh7 {[%clk 0:00:17.9]} 24...
bxc4 {[%clk 0:00:57.9]} 25. Rc1 {[%clk 0:00:07.6]} 25... c3 {[%clk 0:00:50.3]}
26. Bc4 {[%clk 0:00:08.2]} 26... Nxc4 {[%clk 0:00:47.2]} 27. Rxc3 {[%clk
0:00:09.1]} 27... Na3+ {[%clk 0:00:47]} 0-1